[Event "WSTCC-50 2024"]
[Site "Krakow"]
[Date "2024.07.02"]
[Round "1.13"]
[White "Mertens, Marc"]
[Black "Westphal, Wolfgang"]
[Result "0-1"]
[ECO "A11"]
[WhiteElo "2142"]
[BlackElo "2172"]
[Annotator "RC"]
[PlyCount "138"]
[EventDate "2024.07.01"]
[EventType "team-tourn"]
[EventCountry "POL"]
[SourceTitle "playchess.com"]
[Source "ChessBase"]
[SourceQuality "1"]
[TimeControl "40/5400+30:1800+30"]

1. e4 {[%emt 0:00:03]} a6 {[%emt 0:00:25]} 2. d4 {[%emt 0:00:06]} d5 {[%emt 0:00:05]} 3. exd5 {[%emt 0:00:28]} Qxd5 {[%emt 0:00:07]} 4. Nc3 {[%emt 0:00:06]} Qd8 {[%emt 0:00:06]} 5. Bc4 {[%emt 0:05:38]} Nf6 {[%emt 0:01:28]} 6. Nf3 {[%emt 0:03:52]} b5 {[%emt 0:02:29]} 7. Bb3 {[%emt 0:00:14]} c5 {[%emt 0:00:06]} 8. dxc5 {[%emt 0:02:54]} Qxd1+ {[%emt 0:00:17]} 9. Nxd1 {[%emt 0:00:11]} e6 {[%emt 0:00:15]} 10. O-O {[%emt 0:07:43]} Bxc5 {[%emt 0:03:50]} 11. a4 {[%emt 0:20:48]} b4 {[%emt 0:06:04]} 12. a5 {[%emt 0:00:29]} O-O {[%emt 0:01:22]} 13. Ne5 {[%emt 0:13:46]} Bb7 {[%emt 0:01:18]} 14. Ba4 {[%emt 0:04:12]} Rc8 {[%emt 0:06:41]} 15. Be3 {[%emt 0:00:44]} Nd5 {[%emt 0:00:56]} 16. Bxc5 {[%emt 0:00:47]} Rxc5 {[%emt 0:00:07]} 17. Nd3 {[%emt 0:14:00]} Rxa5 {[%emt 0:06:03]} 18. Ne3 {[%emt 0:00:25]} Nxe3 {[%emt 0:00:47]} 19. fxe3 {[%emt 0:00:06]} Rg5 {[%emt 0:00:13]} 20. g3 {[%emt 0:01:04]} a5 {[%emt 0:00:54]} 21. Rf4 {[%emt 0:04:16]} Na6 {[%emt 0:11:03]} 22. Rd4 {[%emt 0:07:37]} h5 {[%emt 0:04:12]} 23. Rd7 {[%emt 0:05:32]} Be4 {[%emt 0:04:02]} 24. Rd4 {[%emt 0:02:06]} Bxd3 {[%emt 0:02:29]} 25. cxd3 {[%emt 0:00:05]} Rc5 {[%emt 0:05:08]} 26. Bb3 {[%emt 0:00:52]} Nc7 {[%emt 0:00:28]} 27. Rd7 {[%emt 0:01:24]} Ne8 {[%emt 0:02:34]} 28. Rb7 {[%emt 0:00:28]} Rd8 {[%emt 0:00:35]} 29. d4 {[%emt 0:00:28]} Rg5 {[%emt 0:02:14]} 30. Ra7 {[%emt 0:00:10]} Nf6 {[%emt 0:01:19]} 31. R1xa5 {[%emt 0:00:14]} Rxa5 {[%emt 0:00:19]} 32. Rxa5 {[%emt 0:00:06]} Ng4 {[%emt 0:00:25]} 33. Rb5 {[%emt 0:01:11]} Nxe3 {[%emt 0:00:12]} 34. Rxb4 {[%emt 0:00:04]} Nf5 {[%emt 0:00:09]} 35. Bd1 {[%emt 0:04:23]} g6 {[%emt 0:00:29]} 36. Kf2 {[%emt 0:00:14]} Nxd4 {[%emt 0:00:11]} 37. Rb7 {[%emt 0:00:27]} Nc6 {[%emt 0:01:32]} 38. Be2 {[%emt 0:00:27]} Ne5 {[%emt 0:06:14]} 39. h3 {[%emt 0:00:21]} Ra8 {[%emt 0:02:34]} 40. Ke3 {[%emt 0:00:30]} Kg7 {[%emt 0:02:27]} 41. b4 {[%emt 0:03:28]} Kf6 {[%emt 0:01:40]} 42. b5 {[%emt 0:00:49]} Ra3+ {[%emt 0:00:15]} 43. Kf2 {[%emt 0:01:02]} Rb3 {[%emt 0:01:24]} 44. Ra7 {[%emt 0:01:55]} Nd3+ {[%emt 0:02:33]} 45. Kg2 {[%emt 0:05:55]} Nc5 {[%emt 0:02:12]} 46. Ra2 {[%emt 0:09:06]} Ne4 {[%emt 0:02:11]} 47. g4 {[%emt 0:05:26]} h4 {[%emt 0:01:21]} 48. Bc4 {[%emt 0:00:37]} Rg3+ {[%emt 0:01:06]} 49. Kh2 {[%emt 0:00:08]} Nd6 {[%emt 0:00:46]} 50. Bf1 {[%emt 0:01:46]} Rb3 {[%emt 0:00:17]} 51. Ra4 {[%emt 0:01:14]} Rb2+ {[%emt 0:00:40]} 52. Kg1 {[%emt 0:00:06]} g5 {[%emt 0:00:20]} 53. Ra5 {[%emt 0:00:32]} Rb1 {[%emt 0:02:01]} 54. Kg2 {[%emt 0:00:16]} Rb3 {[%emt 0:01:36]} 55. Be2 {[%emt 0:00:56]} Rg3+ {[%emt 0:00:24]} 56. Kh2 {[%emt 0:00:08]} Rc3 {[%emt 0:00:48]} 57. Kg2 {[%emt 0:00:39]} Rc5 {[%emt 0:01:15]} 58. Kf3 {[%emt 0:00:34]} Ke5 {[%emt 0:00:32]} 59. Ra7 {[%emt 0:01:35]} Rc3+ {[%emt 0:00:59]} 60. Kg2 {[%emt 0:00:19]} Rb3 {[%emt 0:00:45]} 61. Ra5 {[%emt 0:00:42]} Kf4 {[%emt 0:01:22]} 62. Bf1 {[%emt 0:01:14]} Rb2+ {[%emt 0:00:19]} 63. Kg1 {[%emt 0:00:06]} Ne4 {[%emt 0:01:21]} 64. Ra3 {[%emt 0:00:18]} f5 {[%emt 0:00:52]} 65. gxf5 {[%emt 0:00:15]} exf5 {[%emt 0:00:06]} 66. Ra4 {[%emt 0:01:01]} Rb3 {[%emt 0:02:31]} 67. Bc4 {[%emt 0:03:20]} Rb1+ {[%emt 0:02:46]} 68. Bf1 {[%emt 0:00:19]} g4 {[%emt 0:00:19]} 69. Ra3 {[%emt 0:01:17]} Ng3 0-1

[Event "WSTCC-50 2024"]
[Site "Krakow"]
[Date "2024.07.02"]
[Round "1.13"]
[White "Zeidler, Sven P."]
[Black "Grawe, Christian"]
[Result "1-0"]
[ECO "B24"]
[WhiteElo "2116"]
[BlackElo "2232"]
[Annotator "RC"]
[PlyCount "111"]
[EventDate "2024.07.01"]
[EventType "team-tourn"]
[EventCountry "POL"]
[SourceTitle "playchess.com"]
[Source "ChessBase"]
[SourceQuality "1"]
[TimeControl "40/5400+30:1800+30"]

1. e4 {[%emt 0:00:03]} c5 {[%emt 0:00:28]} 2. Nc3 {[%emt 0:00:10]} Nc6 {[%emt 0:00:24]} 3. Bb5 {[%emt 0:00:10]} Nd4 {[%emt 0:01:09]} 4. Nf3 {[%emt 0:00:11]} a6 {[%emt 0:02:10]} 5. Bd3 {[%emt 0:00:13]} g6 {[%emt 0:13:53]} 6. O-O {[%emt 0:00:40]} Bg7 {[%emt 0:00:14]} 7. Re1 {[%emt 0:06:16]} d6 {[%emt 0:00:56]} 8. Nxd4 {[%emt 0:03:00]} cxd4 {[%emt 0:02:20]} 9. Ne2 {[%emt 0:00:20]} e6 {[%emt 0:05:44]} 10. c3 {[%emt 0:09:20]} dxc3 {[%emt 0:01:29]} 11. dxc3 {[%emt 0:01:45]} Ne7 {[%emt 0:02:10]} 12. Bg5 {[%emt 0:07:15]} O-O {[%emt 0:01:49]} 13. Qd2 {[%emt 0:00:32]} Qc7 {[%emt 0:06:21]} 14. Rad1 {[%emt 0:07:34]} b5 {[%emt 0:01:53]} 15. Bc2 {[%emt 0:06:42]} Rd8 {[%emt 0:02:08]} 16. Bb3 {[%emt 0:06:55]} a5 {[%emt 0:08:07]} 17. Nd4 {[%emt 0:05:35]} Ba6 {[%emt 0:25:39]} 18. Bxe7 {[%emt 0:04:45]} Qxe7 {[%emt 0:00:07]} 19. Nc6 {[%emt 0:00:14]} Qc7 {[%emt 0:00:18]} 20. Nxd8 {[%emt 0:00:06]} Rxd8 {[%emt 0:00:05]} 21. a3 {[%emt 0:01:30]} Qc5 {[%emt 0:02:53]} 22. Qe3 {[%emt 0:04:11]} Qxe3 {[%emt 0:00:35]} 23. Rxe3 {[%emt 0:00:06]} Kf8 {[%emt 0:00:09]} 24. f4 {[%emt 0:06:23]} h5 {[%emt 0:01:12]} 25. f5 {[%emt 0:02:24]} Ke7 {[%emt 0:11:37]} 26. fxg6 {[%emt 0:06:23]} fxg6 {[%emt 0:00:02]} 27. Bc2 {[%emt 0:01:22]} Be5 {[%emt 0:00:18]} 28. Bd3 {[%emt 0:01:11]} Ra8 {[%emt 0:04:43]} 29. Rf3 {[%emt 0:01:19]} b4 {[%emt 0:00:51]} 30. Rdf1 {[%emt 0:02:39]} d5 {[%emt 0:00:14]} 31. exd5 {[%emt 0:01:45]} bxc3 {[%emt 0:01:40]} 32. bxc3 {[%emt 0:01:17]} Bxc3 {[%emt 0:00:46]} 33. Bxa6 {[%emt 0:03:07]} Bd4+ {[%emt 0:00:07]} 34. Kh1 {[%emt 0:00:05]} Rxa6 {[%emt 0:00:09]} 35. Re1 {[%emt 0:01:02]} e5 {[%emt 0:00:34]} 36. Rb1 {[%emt 0:02:17]} Rb6 {[%emt 0:02:22]} 37. Rxb6 {[%emt 0:00:56]} Bxb6 {[%emt 0:00:02]} 38. g3 {[%emt 0:01:19]} Bd4 {[%emt 0:00:59]} 39. Kg2 {[%emt 0:00:35]} a4 {[%emt 0:01:23]} 40. Kf1 {[%emt 0:01:37]} Bb2 {[%emt 0:00:31]} 41. Rf2 {[%emt 0:36:26]} Bxa3 {[%emt 0:05:29]} 42. Ra2 {[%emt 0:00:00]} Bc1 {[%emt 0:00:25]} 43. Rxa4 {[%emt 0:00:00]} Kd6 {[%emt 0:00:14]} 44. Ra6+ {[%emt 0:00:00]} Kxd5 {[%emt 0:02:17]} 45. Rxg6 {[%emt 0:00:00]} Ke4 {[%emt 0:00:32]} 46. Ke2 {[%emt 0:00:00]} Kf5 {[%emt 0:02:12]} 47. Rc6 {[%emt 0:00:00]} Bg5 {[%emt 0:00:53]} 48. Rc4 {[%emt 0:00:00]} Bd8 {[%emt 0:04:07]} 49. Kf3 {[%emt 0:00:00]} Bb6 {[%emt 0:01:05]} 50. Rh4 {[%emt 0:00:00]} Kg5 {[%emt 0:00:23]} 51. Ke4 {[%emt 0:00:00]} Bd4 {[%emt 0:00:32]} 52. Kd5 {[%emt 0:00:00]} Bb2 {[%emt 0:01:17]} 53. Ke6 {[%emt 0:00:00]} Bd4 {[%emt 0:00:29]} 54. Re4 {[%emt 0:00:00]} Bc3 {[%emt 0:01:12]} 55. h4+ {[%emt 0:00:00]} Kg6 {[%emt 0:00:42]} 56. Rxe5 {[%emt 0:00:00]} 1-0

[Event "WSTCC-50 2024"]
[Site "Krakow"]
[Date "2024.07.02"]
[Round "1.14"]
[White "Bellia, Fabrizio"]
[Black "Ograbek, Grzegorz"]
[Result "1-0"]
[ECO "C41"]
[WhiteElo "2401"]
[BlackElo "2063"]
[Annotator "TA"]
[PlyCount "77"]
[EventDate "2024.07.01"]
[EventType "team-tourn"]
[EventCountry "POL"]
[SourceTitle "playchess.com"]
[Source "ChessBase"]
[SourceQuality "1"]
[TimeControl "40/5400+30:1800+30"]

{[%evp 19,77,41,54,18,14,-12,-3,-28,-18,-25,-5,-20,0,-39,0,-35,0,-54,38,-24,-37,-37,-25,-52,0,-16,0,-50,-14,-32,-22,-43,-60,-58,0,0,0,-13,0,10,62,47,43,60,157,177,194,191,223,225,218,227,283,377,1837,1745,1980,1957,29977,10902]} 1. e4 {[%emt 0:00:05]} d6 {[%emt 0:00:20]} 2. d4 {[%emt 0:00:08]} Nf6 {[%emt 0:00:07]} 3. Nc3 {[%emt 0:00:12]} e5 {[%emt 0:00:15]} 4. Nf3 {[%emt 0:00:49]} Nbd7 {[%emt 0:00:22]} 5. Bc4 {[%emt 0:00:59]} Be7 {[%emt 0:00:09]} 6. O-O {[%emt 0:00:43]} O-O {[%emt 0:00:28]} 7. Re1 {[%emt 0:00:29]} a6 {[%emt 0:00:18]} 8. a4 {[%emt 0:00:38]} b6 {[%emt 0:00:41]} 9. h3 {[%emt 0:04:18]} Bb7 {[%emt 0:02:04]} 10. d5 {[%emt 0:15:37]} c6 {[%emt 0:16:36]} 11. b3 {[%emt 0:01:43][%cal Bb2b3,Bb3b4][%mdl 32]} Nc5 {[%emt 0:08:38]} 12. b4 {[%emt 0:09:33] Hoping for dxc6.} cxd5 {[%emt 0:00:51]} 13. exd5 {[%emt 0:00:48] The position is equal.} Ncd7 {[%emt 0:00:40]} 14. Bb3 {[%emt 0:02:24]} Qc7 {[%emt 0:05:26]} 15. Bb2 {[%emt 0:01:57]} Rfc8 {[%emt 0:01:20]} 16. Ne2 {[%emt 0:07:00][%cal Oe2d4]} Bf8 {[%emt 0:00:39]} 17. Ng3 {[%emt 0:03:55]} g6 {[%emt 0:05:17]} 18. Qd2 {[%emt 0:08:10]} (18. a5 $11) 18... Qd8 {[%emt 0:05:38]} (18... a5 $15) 19. c4 {[%emt 0:06:26]} (19. Ng5 $14) 19... a5 $11 {[%emt 0:00:21]} 20. b5 $1 {[%emt 0:00:15]} Bg7 {[%emt 0:06:04]} 21. Qe2 {[%emt 0:04:53]} Qf8 {[%emt 0:03:20]} (21... Nc5 $15 22. Nd2 Qc7) 22. h4 {[%emt 0:00:24]} Re8 {[%emt 0:02:45]} 23. h5 {[%emt 0:03:06]} Bc8 {[%emt 0:07:32]} 24. hxg6 {[%emt 0:00:31]} hxg6 {[%emt 0:00:15]} 25. Ng5 {[%emt 0:00:53]} Bh6 {[%emt 0:02:25]} 26. Bc1 {[%emt 0:01:36]} Nh7 {[%emt 0:15:01]} 27. Nxh7 {[%emt 0:11:33]} Kxh7 {[%emt 0:00:06]} 28. Bxh6 {[%emt 0:00:15]} Qxh6 {[%emt 0:00:25]} 29. Ne4 {[%emt 0:00:29]} Rh8 {[%emt 0:09:45]} (29... Kg7 $11) 30. Qe3 $1 $14 {[%emt 0:05:38]} ({Don't play} 30. Nxd6 Kg8 31. f3 Qh2+ 32. Kf1 Nc5 $11) 30... Qf8 {[%emt 0:01:05]} 31. f4 {[%emt 0:03:09]} f6 {[%emt 0:03:58]} (31... Kg7 $14) 32. fxe5 $16 {[%emt 0:02:27] White has more active pieces.} dxe5 {[%emt 0:00:22] [#]} 33. Rf1 $1 {[%emt 0:01:09][%cal Oc4c5] c5! is the strong threat.} Kg7 {[%emt 0:00:14] [#]} 34. c5 $1 {[%emt 0:01:10][%mdl 512]} bxc5 {[%emt 0:01:43]} 35. d6 {[%emt 0:01:12] Strongly threatening Ng5.} Bb7 {[%emt 0:00:18]} 36. Ng5 {[%emt 0:01:08] Ne6+ would now be deadly.} Qxd6 {[%emt 0:01:46]} (36... Re8 37. Rad1 Rh4) 37. Rad1 $18 {[%emt 0:00:07]} Qe7 {[%emt 0:00:55]} 38. Ne6+ {[%emt 0:00:20]} Kh7 {[%emt 0:00:49] [#]} 39. Rxd7 $1 {[%emt 0:01:15][%mdl 512] Weighted Error Value: White=0.16 (very precise) /Black=0.59.  Mistake:       	White=3     	Black=5      Inaccurate:     	White=4     	Black=4      OK:         	White=5     	Black=4      Best:        	White=4     	Black=1      Strong:       	White=3     	---        Brilliant:      	White=1     	---} 1-0

[Event "WSTCC-50 2024"]
[Site "Krakow"]
[Date "2024.07.02"]
[Round "1.14"]
[White "Kempter, Ronald"]
[Black "Davis, Lee"]
[Result "1/2-1/2"]
[ECO "A05"]
[WhiteElo "2204"]
[BlackElo "1932"]
[Annotator "RC"]
[PlyCount "120"]
[EventDate "2024.07.01"]
[EventType "team-tourn"]
[EventCountry "POL"]
[SourceTitle "playchess.com"]
[Source "ChessBase"]
[SourceQuality "1"]
[TimeControl "40/5400+30:1800+30"]

1. Nf3 {[%emt 0:00:04]} Nf6 {[%emt 0:00:16]} 2. g3 {[%emt 0:00:17]} g6 {[%emt 0:00:08]} 3. Bg2 {[%emt 0:00:16]} Bg7 {[%emt 0:00:06]} 4. O-O {[%emt 0:00:12]} O-O {[%emt 0:00:04]} 5. c4 {[%emt 0:00:18]} c5 {[%emt 0:00:20]} 6. d4 {[%emt 0:00:25]} cxd4 {[%emt 0:00:23]} 7. Nxd4 {[%emt 0:00:06]} Nc6 {[%emt 0:00:03]} 8. Nc3 {[%emt 0:00:10]} Nxd4 {[%emt 0:00:18]} 9. Qxd4 {[%emt 0:00:06]} d6 {[%emt 0:00:04]} 10. Qd2 {[%emt 0:00:05]} Rb8 {[%emt 0:00:28]} 11. b3 {[%emt 0:00:49]} Bd7 {[%emt 0:04:09]} 12. Bb2 {[%emt 0:05:01]} a6 {[%emt 0:05:54]} 13. a4 {[%emt 0:02:32]} Bc6 {[%emt 0:00:41]} 14. e4 {[%emt 0:04:43]} Nd7 {[%emt 0:11:54]} 15. b4 {[%emt 0:16:09]} b6 {[%emt 0:02:30]} 16. b5 {[%emt 0:12:54]} Bb7 {[%emt 0:05:54]} 17. Nd5 {[%emt 0:12:44]} Bxb2 {[%emt 0:00:52]} 18. Qxb2 {[%emt 0:00:06]} a5 {[%emt 0:00:50]} 19. Rfd1 {[%emt 0:04:11]} Bxd5 {[%emt 0:05:28]} 20. cxd5 {[%emt 0:05:09]} Rc8 {[%emt 0:07:53]} 21. h4 {[%emt 0:07:31]} h5 {[%emt 0:00:24]} 22. Bh3 {[%emt 0:03:48]} Rc5 {[%emt 0:00:59]} 23. Rac1 {[%emt 0:04:16]} Qc7 {[%emt 0:02:28]} 24. Bxd7 {[%emt 0:05:07]} Qxd7 {[%emt 0:00:05]} 25. Rxc5 {[%emt 0:00:10]} dxc5 {[%emt 0:00:09]} 26. Kg2 {[%emt 0:03:29]} Rd8 {[%emt 0:04:15]} 27. Qc3 {[%emt 0:03:07]} Qc7 {[%emt 0:01:28]} 28. Rd2 {[%emt 0:03:50]} Rd7 {[%emt 0:05:44]} 29. Kh2 {[%emt 0:01:19]} Qb8 {[%emt 0:09:00]} 30. f4 {[%emt 0:01:12]} Qd8 {[%emt 0:01:01]} 31. Qe5 {[%emt 0:02:57]} Rd6 {[%emt 0:01:09]} 32. f5 {[%emt 0:01:19]} Rf6 {[%emt 0:04:00]} 33. Qf4 {[%emt 0:00:17]} Rd6 {[%emt 0:01:16]} 34. Qf3 {[%emt 0:01:21]} Rf6 {[%emt 0:01:23]} 35. Qe3 {[%emt 0:00:55]} Qc7 {[%emt 0:01:53]} 36. fxg6 {[%emt 0:00:18]} Rxg6 {[%emt 0:03:18]} 37. e5 {[%emt 0:00:12]} Kf8 {[%emt 0:02:09]} 38. Rf2 {[%emt 0:00:12]} Kg7 {[%emt 0:04:55]} 39. Qf4 {[%emt 0:01:34]} e6 {[%emt 0:03:00]} 40. d6 {[%emt 0:00:13]} Qb7 {[%emt 0:01:22]} 41. Rd2 {[%emt 0:30:22]} Qd7 {[%emt 0:30:11]} 42. Qf3 {[%emt 0:01:12]} Qd8 {[%emt 0:05:07]} 43. Rf2 {[%emt 0:00:00]} f5 {[%emt 0:00:00]} 44. Qxh5 {[%emt 0:00:00]} Rh6 {[%emt 0:00:00]} 45. Qf3 {[%emt 0:00:00]} Kg6 {[%emt 0:00:00]} 46. Qf4 {[%emt 0:00:00]} Rh5 {[%emt 0:00:00]} 47. Rd2 {[%emt 0:00:00]} Rh7 {[%emt 0:00:00]} 48. Kg1 {[%emt 0:00:00]} Rg7 {[%emt 0:00:00]} 49. Qf3 {[%emt 0:00:00]} Kh6 {[%emt 0:00:00]} 50. Rf2 {[%emt 0:01:27]} Rg4 {[%emt 0:00:00]} 51. Qe3+ {[%emt 0:00:17]} Kh7 {[%emt 0:00:00]} 52. Rf4 {[%emt 0:00:21]} Qxh4 {[%emt 0:00:14]} 53. Rxg4 {[%emt 0:00:07]} Qxg4 {[%emt 0:00:04]} 54. Kf2 {[%emt 0:00:35]} Qd1 {[%emt 0:02:43]} 55. Qg5 {[%emt 0:02:00]} Qd4+ {[%emt 0:00:43]} 56. Kg2 {[%emt 0:00:20]} Qe4+ {[%emt 0:00:31]} 57. Kh2 {[%emt 0:00:21]} Qe2+ {[%emt 0:00:19]} 58. Kh3 {[%emt 0:00:20]} Qf1+ {[%emt 0:00:09]} 59. Kh2 {[%emt 0:00:12]} Qf2+ {[%emt 0:00:03]} 60. Kh3 {[%emt 0:00:05]} Qd4 1/2-1/2

[Event "WSTCC-50 2024"]
[Site "Krakow"]
[Date "2024.07.02"]
[Round "1.14"]
[White "Dettmann, Gerd"]
[Black "Haensel, Jean-Marie"]
[Result "1-0"]
[ECO "C15"]
[WhiteElo "2121"]
[BlackElo "1868"]
[Annotator "NA RC"]
[PlyCount "67"]
[EventDate "2024.07.01"]
[EventType "team-tourn"]
[EventCountry "POL"]
[SourceTitle "playchess.com"]
[Source "ChessBase"]
[SourceQuality "1"]
[TimeControl "40/5400+30:1800+30"]

1. e4 {[%emt 0:00:03]} e6 {[%emt 0:00:09]} 2. d4 {[%emt 0:00:10]} d5 {[%emt 0:00:06]} 3. Nc3 {[%emt 0:00:02]} Bb4 {[%emt 0:00:07]} 4. Nge2 {[%emt 0:00:06]} dxe4 {[%emt 0:01:04]} 5. a3 {[%emt 0:00:02]} Be7 {[%emt 0:00:31]} 6. Nxe4 {[%emt 0:00:10]} Nf6 {[%emt 0:00:18]} 7. N2c3 {[%emt 0:04:31]} Nbd7 {[%emt 0:01:37]} 8. Bf4 {[%emt 0:03:34]} O-O {[%emt 0:02:52]} 9. Bd3 {[%emt 0:01:49]} Nxe4 {[%emt 0:02:29]} 10. Nxe4 {[%emt 0:02:01]} Nf6 {[%emt 0:01:11]} 11. Be5 {[%emt 0:06:32]} Nxe4 {[%emt 0:09:27]} 12. Bxe4 {[%emt 0:00:02]} f5 {[%emt 0:01:17]} 13. Bf3 {[%emt 0:01:03]} c6 {[%emt 0:07:24]} 14. O-O {[%emt 0:01:14]} Bd7 {[%emt 0:03:35]} 15. Re1 {[%emt 0:01:51]} Bf6 {[%emt 0:02:00]} 16. Qd3 {[%emt 0:03:53]} Qe8 {[%emt 0:02:06]} 17. Qb3 {[%emt 0:04:06]} b6 {[%emt 0:07:26]} 18. Rad1 {[%emt 0:04:48]} Qe7 {[%emt 0:05:03]} 19. h3 {[%emt 0:05:52]} g5 {[%emt 0:07:07]} 20. c4 {[%emt 0:02:55]} Qf7 {[%emt 0:03:00]} 21. Bd6 {[%emt 0:03:21]} Rfe8 {[%emt 0:01:09]} 22. c5 {[%emt 0:04:36]} Bd8 {[%emt 0:02:12]} 23. Re5 {[%emt 0:03:11]} bxc5 {[%emt 0:04:43]} 24. dxc5 {[%emt 0:00:23]} Bf6 {[%emt 0:00:44]} 25. Re3 {[%emt 0:02:10]} e5 {[%emt 0:02:40]} 26. Qxf7+ {[%emt 0:02:04]} Kxf7 {[%emt 0:00:02]} 27. Bxe5 {[%emt 0:00:26]} Rxe5 {[%emt 0:03:14]} 28. Rxd7+ {[%emt 0:00:40]} Re7 {[%emt 0:02:58]} 29. Rexe7+ {[%emt 0:01:10]} Bxe7 {[%emt 0:00:03]} 30. Bxc6 {[%emt 0:00:38]} Rc8 {[%emt 0:03:10]} 31. Bd5+ {[%emt 0:00:43]} Ke8 {[%emt 0:00:11]} 32. c6 {[%emt 0:01:04]} a5 {[%emt 0:01:15]} 33. Ra7 {[%emt 0:02:27]} Rb8 {[%emt 0:02:53]} 34. c7 {[%emt 0:01:07]} 1-0

[Event "WSTCC-50 2024"]
[Site "Krakow"]
[Date "2024.07.02"]
[Round "1.15"]
[White "Adams, Mark"]
[Black "Pieper, Thomas"]
[Result "1/2-1/2"]
[ECO "B92"]
[WhiteElo "1951"]
[BlackElo "2170"]
[Annotator "RC"]
[PlyCount "106"]
[EventDate "2024.07.01"]
[EventType "team-tourn"]
[EventCountry "POL"]
[SourceTitle "playchess.com"]
[Source "ChessBase"]
[SourceQuality "1"]
[TimeControl "40/5400+30:1800+30"]

1. e4 {[%emt 0:00:10]} c5 {[%emt 0:00:14]} 2. Nf3 {[%emt 0:00:08]} d6 {[%emt 0:00:23]} 3. d4 {[%emt 0:00:13]} cxd4 {[%emt 0:00:05]} 4. Nxd4 {[%emt 0:00:09]} Nf6 {[%emt 0:00:14]} 5. Nc3 {[%emt 0:01:05]} a6 {[%emt 0:00:14]} 6. Be2 {[%emt 0:02:39]} e5 {[%emt 0:01:19]} 7. Nb3 {[%emt 0:00:18]} Be6 {[%emt 0:03:56]} 8. Be3 {[%emt 0:03:06]} Nbd7 {[%emt 0:03:59]} 9. O-O {[%emt 0:05:57]} Rc8 {[%emt 0:01:02]} 10. f3 {[%emt 0:06:09]} Nb6 {[%emt 0:12:16]} 11. Nd2 {[%emt 0:04:29]} d5 {[%emt 0:02:10]} 12. exd5 {[%emt 0:05:22]} Nfxd5 {[%emt 0:08:42]} 13. Nxd5 {[%emt 0:01:09]} Nxd5 {[%emt 0:00:12]} 14. Bf2 {[%emt 0:00:20]} Qc7 {[%emt 0:18:20]} 15. c4 {[%emt 0:17:22]} Nf4 {[%emt 0:00:25]} 16. Rc1 {[%emt 0:00:42]} Be7 {[%emt 0:07:11]} 17. Re1 {[%emt 0:09:17]} O-O {[%emt 0:00:52]} 18. Bf1 {[%emt 0:08:34]} Rfd8 {[%emt 0:03:43]} 19. Qc2 {[%emt 0:05:55]} Bc5 {[%emt 0:12:51]} 20. Ne4 {[%emt 0:04:52]} Bf5 {[%emt 0:02:50]} 21. Bxc5 {[%emt 0:04:03]} Bxe4 {[%emt 0:00:10]} 22. Qxe4 {[%emt 0:00:34]} Qxc5+ {[%emt 0:00:06]} 23. Qe3 {[%emt 0:05:44]} Qxe3+ {[%emt 0:08:07]} 24. Rxe3 {[%emt 0:00:05]} f6 {[%emt 0:00:18]} 25. g3 {[%emt 0:00:51]} Ne6 {[%emt 0:01:21]} 26. Bh3 {[%emt 0:00:24]} Rc6 {[%emt 0:00:18]} 27. Bxe6+ {[%emt 0:00:15]} Rxe6 {[%emt 0:00:01]} 28. Rec3 {[%emt 0:04:47]} h5 {[%emt 0:04:32]} 29. R1c2 {[%emt 0:00:10]} Kf7 {[%emt 0:00:21]} 30. b4 {[%emt 0:00:41]} Rd1+ {[%emt 0:00:59]} 31. Kf2 {[%emt 0:02:19]} g5 {[%emt 0:00:20]} 32. c5 {[%emt 0:01:09]} Ra1 {[%emt 0:01:24]} 33. Rb3 {[%emt 0:02:15]} g4 {[%emt 0:00:23]} 34. b5 {[%emt 0:00:44]} axb5 {[%emt 0:00:16]} 35. Rxb5 {[%emt 0:00:05]} Re7 {[%emt 0:00:17]} 36. Rcb2 {[%emt 0:00:19]} Ke6 {[%emt 0:01:29]} 37. Rd2 {[%emt 0:01:19]} Rc7 {[%emt 0:03:01]} 38. fxg4 {[%emt 0:01:41]} hxg4 {[%emt 0:00:07]} 39. Ke3 {[%emt 0:01:40]} Rc1 {[%emt 0:02:33]} 40. Rb6+ {[%emt 0:02:41]} Rc6 {[%emt 0:01:57]} 41. Rxb7 {[%emt 0:01:45]} R1xc5 {[%emt 0:02:32]} 42. Rbb2 {[%emt 0:09:28]} Rc3+ {[%emt 0:04:20]} 43. Rd3 {[%emt 0:02:05]} Rc1 {[%emt 0:01:25]} 44. Rdd2 {[%emt 0:05:40]} Ra1 {[%emt 0:01:46]} 45. Kf2 {[%emt 0:01:07]} Ra6 {[%emt 0:00:26]} 46. Kg2 {[%emt 0:00:58]} Kf5 {[%emt 0:00:51]} 47. Rf2+ {[%emt 0:00:58]} Kg5 {[%emt 0:04:43]} 48. Rb8 {[%emt 0:01:59]} R1xa2 {[%emt 0:11:51]} 49. Rg8+ {[%emt 0:00:30]} Kh5 {[%emt 0:00:08]} 50. Rh8+ {[%emt 0:00:08]} Kg6 {[%emt 0:00:14]} 51. Rg8+ {[%emt 0:00:05]} Kh5 {[%emt 0:01:16]} 52. Rh8+ {[%emt 0:00:06]} Kg6 {[%emt 0:00:05]} 53. Rg8+ {[%emt 0:00:03]} Kh5 1/2-1/2